[Event "Queens Festival Final-A 2022"]
[Site "Tornelo"]
[Date "2022.06.25"]
[Round "2.2"]
[White "Castrillon Gomez, Melissa"]
[Black "Song, Yuxin"]
[Result "0-1"]
[ECO "E04"]
[WhiteElo "2198"]
[BlackElo "2317"]
[Annotator "TA"]
[PlyCount "56"]
[EventDate "2022.06.24"]
[EventType "tourn"]
[EventCountry "NET"]
[SourceTitle "playchess.com"]
[Source "ChessBase"]
[SourceQuality "1"]
[TimeControl "180+2"]

{[%evp 12,56,27,-14,-16,-22,-18,-66,-70,-74,-70,-57,-38,-70,0,0,-6,0,-4,-27,-11,-34,-15,-91,96,98,75,-77,-77,-85,-79,-272,-268,-247,-218,-259,-245,-252,-241,-237,-191,-477,-464,-29989,-29990,-29997,-29998]} 1. d4 {[%emt 0:00:02]} Nf6 {[%emt 0:00:05]} 2. c4 {[%emt 0:00:03]} e6 {[%emt 0:00:02]} 3. g3 {[%emt 0:00:01]} d5 {[%emt 0:00:02]} 4. Bg2 {[%emt 0:00:02]} Bb4+ {[%emt 0:00:01]} 5. Nd2 {[%emt 0:00:02]} O-O {[%emt 0:00:01]} 6. Ngf3 {[%emt 0:00:01]} dxc4 {[%emt 0:00:04]} 7. O-O {[%emt 0:00:08]} b5 {[%emt 0:00:03] E04: Open Catalan: 5 Nf3.} 8. a4 {[%emt 0:00:31]} c6 {[%emt 0:00:02]} 9. Ne5 {[%emt 0:00:15]} (9. axb5 $11 {feels stronger.} cxb5 10. Ne1) 9... Nd5 $1 $15 {[%emt 0:00:04] Black is slightly better.} ({Don't play} 9... Qxd4 10. Nxc6 Nxc6 11. Bxc6 $14) 10. Ne4 {[%emt 0:00:15]} f6 {[%emt 0:00:12]} 11. Nf3 {[%emt 0:00:07]} Nd7 {[%emt 0:00:11]} 12. Bd2 {[%emt 0:00:12]} Be7 {[%emt 0:00:15]} ({Black should try} 12... Bxd2 $15 13. Nfxd2 a5) 13. axb5 $11 {[%emt 0:00:07]} cxb5 {[%emt 0:00:02] Threatening ...a5.} 14. Ba5 {[%emt 0:00:02]} Qe8 {[%emt 0:00:05] [#]} 15. Nc3 $146 {[%emt 0:00:09]} ({Predecessor:} 15. b3 Bb7 16. bxc4 bxc4 17. Nfd2 Rc8 18. Rc1 N7b6 19. Qc2 Qb5 20. Bxb6 Nxb6 21. Nc3 {0-1 (40) Gogolev,A (2306)-Barp,A (2375) Chess.com INT 2020}) 15... Nxc3 {[%emt 0:00:08]} 16. bxc3 {[%emt 0:00:00][%cal Of3g5]} Bb7 {[%emt 0:00:01]} 17. Qc2 {[%emt 0:00:03]} (17. Qb1 $1 $11 {keeps the balance.}) 17... Qg6 $2 {[%emt 0:00:04] [#]} (17... f5 $17 {stays on course.}) 18. Qb2 $1 $16 {[%emt 0:00:11][%mdl 1024] White has strong compensation.} Qh5 {[%emt 0:00:05] [#]} 19. Rfe1 $2 {[%emt 0:00:13]} (19. g4 $1 $16 {[%cal Rg4h5]} Qe8 20. Qxb5) 19... a6 $36 {[%emt 0:00:18][%mdl 2048] Black is in control. Black is more active.} 20. e4 {[%emt 0:00:18]} f5 {[%emt 0:00:22]} 21. Ne5 $2 {[%emt 0:00:02] Loses the game.} (21. Nd2 $17 {might work better.}) 21... Nxe5 $19 {[%emt 0:00:06]} 22. dxe5 {[%emt 0:00:03]} Bxe4 {[%emt 0:00:05]} 23. Bxe4 {[%emt 0:00:03]} fxe4 {[%emt 0:00:01]} 24. Rxe4 {[%emt 0:00:03]} Bc5 {[%emt 0:00:02]} 25. Rf1 {[%emt 0:00:12]} Rf5 {[%emt 0:00:02] Threatens to win with ...Raf8.} 26. Bc7 $2 {[%emt 0:00:09]} (26. Qe2) 26... Raf8 {[%emt 0:00:07]} 27. Re2 {[%emt 0:00:15]} (27. Qe2 $19 Qe8 28. Re3) 27... Qh3 {[%emt 0:00:12]} 28. Bd6 {[%emt 0:00:06] [#]} Rh5 $1 {[%emt 0:00:03] Weighted Error Value: White=0.76/Black=0.26 (precise)} 0-1

[Event "Queens Festival Final-A 2022"]
[Site "Tornelo"]
[Date "2022.06.25"]
[Round "2.3"]
[White "Ismayil, Malak"]
[Black "Cori T., Deysi"]
[Result "0-1"]
[ECO "C03"]
[WhiteElo "2001"]
[BlackElo "2367"]
[Annotator "TA"]
[PlyCount "168"]
[EventDate "2022.06.24"]
[EventType "tourn"]
[EventCountry "NET"]
[SourceTitle "playchess.com"]
[Source "ChessBase"]
[SourceQuality "1"]
[TimeControl "180+2"]

{[%evp 9,168,2,34,18,18,23,17,8,28,0,7,-7,22,33,23,29,36,45,47,12,0,0,0,0,33,-13,-8,-13,-10,-9,0,-17,-6,-7,0,0,0,0,0,-41,-33,-36,-49,-64,-12,-80,-95,-80,-32,-47,-51,-92,-50,-229,-212,-483,-447,-460,-391,-375,-194,-147,-150,-502,-474,-455,-281,-227,-129,-124,-124,-116,-52,-81,-66,-92,-96,-135,-129,-139,-109,-112,-104,-139,-139,-145,-132,-123,-131,-141,-85,-142,-116,-141,-109,-266,-260,-333,-322,-345,-360,-308,-340,-425,-397,-869,-869,-958,-931,-1245,-1132,-29985,-4034,-29960,-2606,-1873,-1088,-4049,-1860,-2152,-2057,-6689,-2167,-4134,-4855,-9822,-6173,-29972,-29973,-29973,-29973,-29973,-29974,-29974,-29975,-29975,-29976,-29976,-29977,-29978,-29979,-29980,-29980,-29979,-29981,-29982,-29982,-29983,-29984,-29984,-29985,-29985,-29986,-29986,-29987,-29987,-29988,-29991,-29992,-29992,-29993]} 1. e4 {[%emt 0:00:02]} e6 {[%emt 0:00:04]} 2. d4 {[%emt 0:00:02]} d5 {[%emt 0:00:01]} 3. Nd2 {[%emt 0:00:02]} a6 {[%emt 0:00:03]} 4. c3 {[%emt 0:00:23]} c5 {[%emt 0:00:03]} 5. exd5 {[%emt 0:00:02]} Qxd5 {[%emt 0:00:02]} 6. dxc5 {[%emt 0:00:05] C03: French Tarrasch: Unusual Black 3rd moves.} Bxc5 {[%emt 0:00:04]} 7. Ngf3 {[%emt 0:00:01]} Nf6 {[%emt 0:00:04]} 8. Bc4 {[%emt 0:00:02] [#] The position is equal.} Qh5 $146 {[%emt 0:00:05]} ({Predecessor:} 8... Qd6 9. O-O Ba7 10. Qe2 Bd7 11. Rd1 Qc7 12. Ne5 Bxf2+ 13. Kh1 Bc5 14. Ndf3 O-O {0-1 (30) Heinechen,J (2017)-Diaz,F (2070) Asuncion 2018}) 9. O-O {[%emt 0:00:02]} O-O {[%emt 0:00:02]} 10. Qe2 {[%emt 0:00:02]} Nc6 {[%emt 0:00:03]} 11. Ne4 {[%emt 0:00:05]} Nxe4 {[%emt 0:00:10]} 12. Qxe4 {[%emt 0:00:02]} Rd8 {[%emt 0:00:06][%cal Ob7b5]} 13. Bf4 {[%emt 0:00:02]} Qg6 {[%emt 0:00:22]} 14. Qe2 {[%emt 0:00:12]} b5 {[%emt 0:00:06]} 15. Bb3 {[%emt 0:00:02]} Bb7 {[%emt 0:00:03]} 16. Bc2 {[%emt 0:00:02]} Qh5 {[%emt 0:00:06]} (16... Qg4 $5 {[%cal Rg4f4]} 17. Qe4 Qg6 $11) 17. Rad1 {[%emt 0:00:24]} (17. Be4 $14 {is more appropriate.}) 17... Ne7 $11 {[%emt 0:00:02]} 18. Be4 {[%emt 0:00:06]} Bxe4 {[%emt 0:00:17]} 19. Qxe4 {[%emt 0:00:02] b4 is the strong threat.} Nd5 {[%emt 0:00:01]} 20. Bg5 {[%emt 0:00:04]} Re8 {[%emt 0:00:03]} 21. h3 {[%emt 0:00:07]} h6 {[%emt 0:00:03]} 22. Bh4 {[%emt 0:00:06]} f5 {[%emt 0:00:51]} 23. Qe5 {[%emt 0:00:02] Threatens to win with Rxd5.} ({But not} 23. Rxd5 $2 Qf7 $1 24. Qd3 exd5 $19) 23... Qf7 {[%emt 0:00:01]} 24. Rd3 {[%emt 0:00:29]} Bb6 {[%emt 0:00:05]} 25. Rfd1 {[%emt 0:00:08]} Bc7 {[%emt 0:00:03]} 26. Qe1 {[%emt 0:00:04]} Qh5 {[%emt 0:00:11]} (26... f4 $15) 27. Bg3 {[%emt 0:00:12]} (27. Rd4 $11 {remains equal.}) 27... f4 $36 {[%emt 0:00:04][%mdl 2048] Black is in control.} 28. Bh2 {[%emt 0:00:02] [#]} Qf5 {[%emt 0:00:08] Prevents Qe4.} (28... Nf6 $1 $17) 29. Nd4 {[%emt 0:00:02]} Qg6 {[%emt 0:00:04]} 30. b3 {[%emt 0:00:07]} e5 {[%emt 0:00:13]} 31. Nc2 {[%emt 0:00:02]} (31. Nxb5 $15 axb5 32. Rxd5) 31... Nf6 $19 {[%emt 0:00:03]} 32. f3 $2 {[%emt 0:00:05]} (32. Kh1 {was necessary.}) 32... e4 {[%emt 0:00:01]} 33. fxe4 {[%emt 0:00:03]} Nxe4 {[%emt 0:00:01]} 34. Qf1 {[%emt 0:00:02]} Rf8 {[%emt 0:00:11]} (34... Rac8 $142 35. Qf3 Bb6+ 36. Kf1 Ng3+ 37. Bxg3 fxg3) 35. Nd4 {[%emt 0:00:02]} Rae8 {[%emt 0:00:02] 0x0.00166e552e1cdp-1022s more active pieces.} 36. Nf3 $2 {[%emt 0:00:02]} (36. Kh1 $17 {is more resistant.}) 36... Bb6+ {[%emt 0:00:01]} 37. Nd4 {[%emt 0:00:07]} Qf6 {[%emt 0:00:02]} 38. Kh1 {[%emt 0:00:02]} Nxc3 {[%emt 0:00:05]} 39. Rxc3 $17 {[%emt 0:00:02]} Bxd4 {[%emt 0:00:01]} 40. Rf3 {[%emt 0:00:02][%cal Rf3f4]} Be5 {[%emt 0:00:02]} ({Black should try} 40... Re4 $17 41. Bg1 Bxg1 42. Kxg1 Rfe8) 41. Bg1 {[%emt 0:00:05]} Qg6 {[%emt 0:00:01]} 42. Bc5 {[%emt 0:00:05]} Rf6 {[%emt 0:00:01]} 43. b4 {[%emt 0:00:03]} Rfe6 {[%emt 0:00:02]} 44. Qd3 {[%emt 0:00:09]} Kh7 {[%emt 0:00:03]} 45. Qxg6+ {[%emt 0:00:07]} Rxg6 {[%emt 0:00:01]} 46. Re1 {[%emt 0:00:04]} Rge6 {[%emt 0:00:02]} 47. Rd3 {[%emt 0:00:06]} Bb8 {[%emt 0:00:10]} 48. Rxe6 {[%emt 0:00:02]} Rxe6 {[%emt 0:00:01][%mdl 4096] Endgame KRB-KRB} 49. Kg1 {[%emt 0:00:01]} Re2 {[%emt 0:00:04]} (49... g5 $142 50. Rd8 Be5) 50. a3 {[%emt 0:00:02]} (50. Ra3 $142) 50... Be5 {[%emt 0:00:03]} 51. Kf1 {[%emt 0:00:01] [#]} Ra2 {[%emt 0:00:03]} 52. Bf2 $2 {[%emt 0:00:13]} (52. Bd4 $17 Bxd4 53. Rxd4) 52... Kg6 $19 {[%emt 0:00:02]} 53. Rd5 {[%emt 0:00:08]} Kf6 {[%emt 0:00:03]} 54. Bd4 {[%emt 0:00:03]} Bxd4 {[%emt 0:00:02]} 55. Rxd4 {[%emt 0:00:01] KR-KR} Ke5 {[%emt 0:00:01] Inhibits Rd6.} ({Weaker is} 55... Rxa3 56. Rxf4+ Ke5 57. Rg4 $17) 56. Rd3 {[%emt 0:00:01]} g5 {[%emt 0:00:01]} 57. Kg1 $2 {[%emt 0:00:03]} (57. g3) 57... h5 {[%emt 0:00:02][%cal Bh6h5,Bh5g4][%mdl 32]} 58. Rc3 {[%emt 0:00:04]} g4 {[%emt 0:00:04]} 59. hxg4 {[%emt 0:00:04]} hxg4 {[%emt 0:00:00]} 60. Kh2 {[%emt 0:00:01]} Ke4 {[%emt 0:00:03]} (60... f3 $142 61. Kg1 Rxg2+ 62. Kf1 Ra2 63. Re3+ Kf4 64. Re6 g3 65. Rf6+ Ke4 66. Re6+ Kf5 67. Re8 g2+ 68. Kg1 Ra1+ 69. Kf2 g1=Q+ 70. Kxf3 Rxa3+ 71. Ke2 Qg2+ 72. Ke1 Ra1#) 61. Rc6 {[%emt 0:00:03]} Rxa3 {[%emt 0:00:04]} (61... f3 $142 62. Kg1 Rxg2+ 63. Kf1 Ra2 64. Rg6 Kf4 65. Rf6+ Kg3 66. Re6 Ra1+ 67. Re1 Rxe1+ 68. Kxe1 Kf4 69. a4 g3 70. Kf1 Ke3 71. Ke1 f2+ 72. Kd1 f1=Q+ 73. Kc2 bxa4 74. b5 Qxb5 75. Kc1 Kd3 76. Kd1 Qb1#) 62. Re6+ {[%emt 0:00:01]} Kf5 {[%emt 0:00:01]} 63. Rc6 {[%emt 0:00:02]} Ra1 {[%emt 0:00:02]} 64. Rc5+ {[%emt 0:00:01]} Ke4 {[%emt 0:00:02]} 65. g3 {[%emt 0:00:04]} Ra2+ {[%emt 0:00:03]} (65... f3 $142 66. Re5+ Kd3 67. Rd5+ Ke2 68. Rd2+ Ke1) 66. Kg1 {[%emt 0:00:01]} fxg3 {[%emt 0:00:02]} 67. Rc6 {[%emt 0:00:03]} Kd3 {[%emt 0:00:03] ( -> ...a5)} 68. Rg6 {[%emt 0:00:03]} Kc3 {[%emt 0:00:02] Black mates.} 69. Rxg4 {[%emt 0:00:01]} g2 {[%emt 0:00:03]} 70. Kh2 {[%emt 0:00:03]} Kb3 {[%emt 0:00:02]} 71. Kg1 {[%emt 0:00:03]} Rc2 {[%emt 0:00:01]} 72. Kh2 {[%emt 0:00:02]} Rc4 {[%emt 0:00:03]} 73. Rg6 {[%emt 0:00:01]} Kxb4 {[%emt 0:00:04]} 74. Rxa6 {[%emt 0:00:02]} Rc2 {[%emt 0:00:01]} 75. Kg1 {[%emt 0:00:02]} Kb3 {[%emt 0:00:02]} 76. Rb6 {[%emt 0:00:01]} b4 {[%emt 0:00:00][%cal Bb5b4,Bb4b3,Bb3b2][%mdl 32]} 77. Rg6 {[%emt 0:00:01]} Ka3 {[%emt 0:00:02]} 78. Ra6+ {[%emt 0:00:02]} Kb2 {[%emt 0:00:01]} 79. Rb6 {[%emt 0:00:01]} b3 {[%emt 0:00:01]} 80. Rb8 {[%emt 0:00:02]} Ka2 {[%emt 0:00:01]} 81. Ra8+ {[%emt 0:00:01]} Kb1 {[%emt 0:00:02]} 82. Rd8 {[%emt 0:00:05]} b2 {[%emt 0:00:02]} 83. Rd1+ {[%emt 0:00:02]} Rc1 {[%emt 0:00:01]} 84. Kxg2 {[%emt 0:00:04]} Rxd1 {[%emt 0:00:01] Weighted Error Value: White=0.67/Black=0.33} 0-1

[Event "Queens Festival Final-A 2022"]
[Site "Tornelo"]
[Date "2022.06.25"]
[Round "2.4"]
[White "Balabayeva, Xeniya"]
[Black "Okuyaz, Duru"]
[Result "1-0"]
[ECO "C10"]
[WhiteElo "2177"]
[BlackElo "2090"]
[Annotator "RC"]
[PlyCount "127"]
[EventDate "2022.06.24"]
[EventType "tourn"]
[EventCountry "NET"]
[SourceTitle "playchess.com"]
[Source "ChessBase"]
[SourceQuality "1"]
[TimeControl "180+2"]

1. e4 {[%emt 0:00:02]} e6 {[%emt 0:00:04]} 2. d4 {[%emt 0:00:02]} d5 {[%emt 0:00:01]} 3. Nd2 {[%emt 0:00:01]} dxe4 {[%emt 0:00:01]} 4. Nxe4 {[%emt 0:00:02]} Nd7 {[%emt 0:00:02]} 5. Nf3 {[%emt 0:00:04]} Ngf6 {[%emt 0:00:00]} 6. Nxf6+ {[%emt 0:00:03]} Nxf6 {[%emt 0:00:02]} 7. g3 {[%emt 0:00:11]} Be7 {[%emt 0:00:04]} 8. Bg2 {[%emt 0:00:03]} O-O {[%emt 0:00:02]} 9. O-O {[%emt 0:00:01]} c5 {[%emt 0:00:01]} 10. c3 {[%emt 0:00:15]} cxd4 {[%emt 0:00:02]} 11. Nxd4 {[%emt 0:00:02]} e5 {[%emt 0:00:08]} 12. Nb3 {[%emt 0:00:04]} Qc7 {[%emt 0:00:32]} 13. Be3 {[%emt 0:00:27]} Bg4 {[%emt 0:00:02]} 14. Qc2 {[%emt 0:00:03]} Rac8 {[%emt 0:00:08]} 15. Rfe1 {[%emt 0:00:05]} Bh5 {[%emt 0:00:02]} 16. Bg5 {[%emt 0:00:29]} Rfd8 {[%emt 0:00:02]} 17. h3 {[%emt 0:00:10]} h6 {[%emt 0:00:03]} 18. Bxf6 {[%emt 0:00:23]} Bxf6 {[%emt 0:00:01]} 19. Nd2 {[%emt 0:00:11]} Bg6 {[%emt 0:00:10]} 20. Be4 {[%emt 0:00:14]} Bg5 {[%emt 0:00:22]} 21. Nf3 {[%emt 0:00:05]} Bxe4 {[%emt 0:00:03]} 22. Qxe4 {[%emt 0:00:03]} Bf6 {[%emt 0:00:11]} 23. Rad1 {[%emt 0:00:02]} Qb6 {[%emt 0:00:05]} 24. Rxd8+ {[%emt 0:00:16]} Rxd8 {[%emt 0:00:01]} 25. Re2 {[%emt 0:00:01]} Rd1+ {[%emt 0:00:05]} 26. Kg2 {[%emt 0:00:01]} Qa5 {[%emt 0:00:02]} 27. a3 {[%emt 0:00:04]} Qd8 {[%emt 0:00:32]} 28. Nxe5 {[%emt 0:00:03]} Bxe5 {[%emt 0:00:02]} 29. Qxe5 {[%emt 0:00:01]} Qd3 {[%emt 0:00:04]} 30. Qe8+ {[%emt 0:00:02]} Kh7 {[%emt 0:00:02]} 31. Qe4+ {[%emt 0:00:01]} Qxe4+ {[%emt 0:00:01]} 32. Rxe4 {[%emt 0:00:00]} Rd2 {[%emt 0:00:03]} 33. Rb4 {[%emt 0:00:02]} b6 {[%emt 0:00:01]} 34. Kf3 {[%emt 0:00:02]} Kg6 {[%emt 0:00:04]} 35. Ke3 {[%emt 0:00:01]} Rd1 {[%emt 0:00:01]} 36. Rd4 {[%emt 0:00:07]} Rb1 {[%emt 0:00:02]} 37. Rd2 {[%emt 0:00:02]} Kf6 {[%emt 0:00:03]} 38. Kd4 {[%emt 0:00:10]} Ke6 {[%emt 0:00:03]} 39. Kc4 {[%emt 0:00:01]} a6 {[%emt 0:00:01]} 40. a4 {[%emt 0:00:07]} Ra1 {[%emt 0:00:02]} 41. b3 {[%emt 0:00:02]} Ra3 {[%emt 0:00:01]} 42. Re2+ {[%emt 0:00:09]} Kd7 {[%emt 0:00:05]} 43. Re4 {[%emt 0:00:02]} Ra1 {[%emt 0:00:02]} 44. Rg4 {[%emt 0:00:02]} g6 {[%emt 0:00:01]} 45. Rh4 {[%emt 0:00:02]} h5 {[%emt 0:00:03]} 46. Rf4 {[%emt 0:00:03]} Ke7 {[%emt 0:00:03]} 47. Kd5 {[%emt 0:00:02]} Rb1 {[%emt 0:00:03]} 48. b4 {[%emt 0:00:03]} Ra1 {[%emt 0:00:01]} 49. Kc6 {[%emt 0:00:01]} Rxa4 {[%emt 0:00:03]} 50. Kxb6 {[%emt 0:00:02]} Ra3 {[%emt 0:00:01]} 51. c4 {[%emt 0:00:01]} g5 {[%emt 0:00:08]} 52. Re4+ {[%emt 0:00:02]} Kd7 {[%emt 0:00:02]} 53. c5 {[%emt 0:00:01]} Rc3 {[%emt 0:00:04]} 54. Rd4+ {[%emt 0:00:01]} Kc8 {[%emt 0:00:02]} 55. Kxa6 {[%emt 0:00:01]} f5 {[%emt 0:00:03]} 56. Kb6 {[%emt 0:00:02]} f4 {[%emt 0:00:02]} 57. gxf4 {[%emt 0:00:02]} g4 {[%emt 0:00:01]} 58. hxg4 {[%emt 0:00:02]} h4 {[%emt 0:00:00]} 59. f5 {[%emt 0:00:05]} h3 {[%emt 0:00:02]} 60. Rd1 {[%emt 0:00:02]} h2 {[%emt 0:00:01]} 61. Rh1 {[%emt 0:00:01]} Rh3 {[%emt 0:00:02]} 62. g5 {[%emt 0:00:01]} Rh5 {[%emt 0:00:02]} 63. g6 {[%emt 0:00:02]} Rxf5 {[%emt 0:00:02]} 64. Rxh2 {[%emt 0:00:01]} 1-0

[Event "Queens Festival Final-A 2022"]
[Site "Tornelo"]
[Date "2022.06.25"]
[Round "3.1"]
[White "Cori T., Deysi"]
[Black "Balabayeva, Xeniya"]
[Result "0-1"]
[ECO "D46"]
[WhiteElo "2367"]
[BlackElo "2177"]
[Annotator "TA"]
[PlyCount "132"]
[EventDate "2022.06.24"]
[EventType "tourn"]
[EventCountry "NET"]
[SourceTitle "playchess.com"]
[Source "ChessBase"]
[SourceQuality "1"]
[TimeControl "180+2"]

{[%evp 21,131,54,83,43,40,3,24,-44,0,-4,0,-2,-2,-2,23,21,11,11,54,52,83,29,31,27,36,38,29,33,77,53,120,25,16,16,17,8,30,0,0,0,0,-50,-56,-106,-45,-196,-137,-128,-101,-108,-124,-122,-85,-237,-63,-143,-132,-345,-318,-322,-312,-304,-291,-515,-408,-402,-212,-656,-627,-1208,-972,-29952,-1679,-5531,-1362,-1223,-1223,-1038,-1018,-29983,-29984,-29984,-29974,-29972,-29974,-29974,-29974,-29973,-29974,-29976,-29977,-29977,-29977,-29981,-29979,-29981,-29982,-29982,-29982,-29983,-29983,-29983,-29984,-29983,-29984,-29986,-29987,-29987,-29988,-29992,-29993,-29999]} 1. d4 {[%emt 0:00:02]} d5 {[%emt 0:00:04]} 2. Nf3 {[%emt 0:00:01]} e6 {[%emt 0:00:04]} 3. c4 {[%emt 0:00:03]} Nf6 {[%emt 0:00:02]} 4. e3 {[%emt 0:00:01]} h6 {[%emt 0:00:10]} 5. Nbd2 {[%emt 0:00:02]} c6 {[%emt 0:00:04]} 6. Bd3 {[%emt 0:00:01]} Bd6 {[%emt 0:00:07]} 7. O-O {[%emt 0:00:04]} O-O {[%emt 0:00:03]} 8. e4 {[%emt 0:00:01]} dxe4 {[%emt 0:00:02]} 9. Nxe4 {[%emt 0:00:00]} Nxe4 {[%emt 0:00:02]} 10. Bxe4 {[%emt 0:00:00]} Nd7 {[%emt 0:00:03]} 11. Bc2 {[%emt 0:00:02]} Nf6 {[%emt 0:00:09]} 12. Be3 {[%emt 0:00:03] D46: Semi-Slav: 5 e3 Nbd7 6 Bd3, Black avoids the Meran.} (12. Ne5 {seems wilder.} c5 13. Qd3 cxd4 14. Bf4) 12... b6 {[%emt 0:00:03][%cal Bb7b6,Bb6b5][%mdl 32] [#]} 13. c5 $146 {[%emt 0:00:18]} ({Predecessor:} 13. Qd3 Bb7 14. Rad1 Qc7 15. Qd2 Ng4 16. h3 Nxe3 17. Qxe3 c5 18. d5 exd5 19. cxd5 Rae8 {0-1 (57) Krivoshey,S (2501)-Miljkovic,M (2390) Playchess.com INT 2004}) 13... Bc7 {[%emt 0:00:11]} 14. Nd2 {[%emt 0:00:32]} (14. Re1 $11) 14... Qd5 {[%emt 0:00:32]} 15. Bb3 {[%emt 0:00:14]} Qf5 {[%emt 0:00:18]} 16. Qf3 $132 {[%emt 0:00:03][%mdl 2048] White is not keeping still} Qxf3 {[%emt 0:00:29]} 17. Nxf3 {[%emt 0:00:00]} b5 {[%emt 0:00:13]} 18. a4 {[%emt 0:00:14]} a5 {[%emt 0:00:10]} 19. Ne5 {[%emt 0:00:24]} Bxe5 {[%emt 0:00:26]} (19... Ba6 {is more complex.} 20. Nxc6 bxa4 21. Bxa4 Bxf1 22. Kxf1 Nd5) 20. dxe5 {[%emt 0:00:00]} Nd5 {[%emt 0:00:01]} 21. Bxd5 {[%emt 0:00:46]} (21. axb5 $16 {Black must now prevent b6.} Nxe3 22. fxe3 cxb5 23. Rfc1) 21... exd5 $11 {[%emt 0:00:04]} 22. axb5 {[%emt 0:00:03]} cxb5 {[%emt 0:00:01]} 23. c6 {[%emt 0:00:01]} Bf5 {[%emt 0:00:14]} 24. Rfc1 {[%emt 0:00:06]} Bd3 {[%emt 0:00:05]} 25. Rc5 {[%emt 0:00:20]} Bc4 {[%emt 0:00:05]} (25... a4 $14) 26. b3 {[%emt 0:00:01]} (26. c7 $16) 26... Bxb3 {[%emt 0:00:01]} 27. Rxb5 {[%emt 0:00:01]} a4 {[%emt 0:00:01]} 28. c7 {[%emt 0:00:08]} Rfc8 {[%emt 0:00:02]} 29. h4 {[%emt 0:00:08]} Bc4 {[%emt 0:00:03]} 30. Rc5 {[%emt 0:00:01]} a3 {[%emt 0:00:02]} 31. Bd4 {[%emt 0:00:01]} (31. Rc6 $1 $11) 31... a2 $15 {[%emt 0:00:02]} 32. h5 {[%emt 0:00:02]} (32. Rc6 $15) 32... Kf8 {[%emt 0:00:05]} (32... Ra6 $17 33. f4 Re6) 33. Re1 $2 {[%emt 0:00:10] [#]} (33. Rc6 $15) 33... Ke7 {[%emt 0:00:04]} ({Black should try} 33... Ra7 $19 34. f4 Rcxc7) 34. f4 $17 {[%emt 0:00:06]} Kd7 {[%emt 0:00:01]} 35. e6+ {[%emt 0:00:03]} fxe6 {[%emt 0:00:02]} 36. Be5 {[%emt 0:00:01]} Ra7 {[%emt 0:00:03]} 37. Rd1 $2 {[%emt 0:00:02] [#]} (37. Kf2 $17 {was called for.}) 37... Ke7 $2 {[%emt 0:00:02]} (37... Rcxc7 $19 38. Rxc7+ Rxc7) 38. Re1 {[%emt 0:00:02]} (38. Ra1 $15) 38... Rb7 {[%emt 0:00:01]} 39. f5 $2 {[%emt 0:00:06]} (39. Kf2 $17) 39... Rb1 $19 {[%emt 0:00:02]} ({Wrong is} 39... exf5 $2 40. Rc6) 40. Kf2 {[%emt 0:00:02]} Rxe1 {[%emt 0:00:03] Dancing on a razor blade.} 41. Kxe1 {[%emt 0:00:00]} exf5 {[%emt 0:00:01] Strongly threatening ...Ke6.} 42. Bxg7 $2 {[%emt 0:00:02][%mdl 4096] Endgame KRB-KRB} (42. Kd2) 42... Kd7 {[%emt 0:00:01]} 43. Be5 {[%emt 0:00:02]} Re8 {[%emt 0:00:02]} (43... Ke6 $142 44. Bb2 Kd6) 44. Kd2 $2 {[%emt 0:00:02]} (44. c8=Q+ Rxc8 45. Rxc8 Kxc8 46. Bg7) 44... Kc8 {[%emt 0:00:04]} 45. Bc3 {[%emt 0:00:06]} Re2+ {[%emt 0:00:02]} 46. Kc1 {[%emt 0:00:01]} Rxg2 {[%emt 0:00:01]} (46... Bb3 $142 47. Ba1 Rxg2 48. Rc3 Rg1+ 49. Kb2 Rb1+ 50. Ka3 Bc4 51. Bb2 f4 52. Rf3 a1=Q+ 53. Bxa1 Rxa1+ 54. Kb4 Rf1 55. Ra3 Kxc7 56. Kc5 Kd7 57. Ra7+ Ke6 58. Rg7 f3 59. Kd4 f2 60. Rg6+ Kf5 61. Kc5 Rg1 62. Rb6 f1=Q 63. Rb7 Qa1 64. Rc7 Qa5+ 65. Kd6 Qb6+ 66. Rc6 Qb4+ 67. Rc5 Rg7 68. Kc6 Qb7+ 69. Kd6 Rd7#) 47. Be5 {[%emt 0:00:02]} Rg1+ {[%emt 0:00:01]} (47... Re2 $142 48. Bd4 f4) 48. Kd2 {[%emt 0:00:02]} a1=Q {[%emt 0:00:00]} 49. Bxa1 {[%emt 0:00:03]} Rxa1 {[%emt 0:00:00] KRB-KR} 50. Rc6 {[%emt 0:00:01]} Ra6 {[%emt 0:00:02] Black mates.} 51. Rc5 {[%emt 0:00:03]} Rf6 {[%emt 0:00:02]} 52. Ke3 {[%emt 0:00:02]} f4+ {[%emt 0:00:01]} 53. Kf3 {[%emt 0:00:01]} Rf7 {[%emt 0:00:02]} 54. Rc6 {[%emt 0:00:02]} Bd3 {[%emt 0:00:06]} 55. Rxh6 {[%emt 0:00:02]} Be4+ {[%emt 0:00:01]} 56. Kf2 {[%emt 0:00:01]} Kxc7 {[%emt 0:00:01]} 57. Rh8 {[%emt 0:00:02]} Rg7 {[%emt 0:00:01]} 58. h6 {[%emt 0:00:01]} Rg2+ {[%emt 0:00:01]} 59. Kf1 {[%emt 0:00:00]} Rh2 {[%emt 0:00:01]} 60. Rf8 {[%emt 0:00:03]} Rxh6 {[%emt 0:00:03]} 61. Rxf4 {[%emt 0:00:01]} Kd6 {[%emt 0:00:01]} 62. Rf8 {[%emt 0:00:02]} Ke5 {[%emt 0:00:01]} 63. Ke2 {[%emt 0:00:01]} Rh2+ {[%emt 0:00:02]} 64. Ke1 {[%emt 0:00:02]} Kd4 {[%emt 0:00:02]} 65. Ra8 {[%emt 0:00:01]} Ke3 {[%emt 0:00:02][%cal Rh2h1]} 66. Kf1 {[%emt 0:00:01]} Rh1# {[%emt 0:00:02] Weighted Error Value: White=0.97/Black=0.62} 0-1